[Event "Is Bankasi Online Satranc Turn 17-18 YAS"]
[Site "T#646243Mustafa Kemal"]
[Date "2020.05.22"]
[Round "5"]
[White "tunaonatnalban08"]
[Black "Alparslanisik80"]
[Result "1/2-1/2"]
[WhiteElo "2038"]
[BlackElo "1862"]
[Annotator "NA RC"]
[PlyCount "197"]
[EventDate "2020.05.22"]
[EventType "swiss (blitz)"]
[TimeControl "180+2"]

1. d4 {[%emt 0:00:03]} Nf6 {[%emt 0:00:02]} 2. Nf3 {[%emt 0:00:08]} g6 {[%emt 0:00:01]} 3. Bf4 {[%emt 0:00:03]} Bg7 {[%emt 0:00:01]} 4. c4 {[%emt 0:00:02]} O-O {[%emt 0:00:03]} 5. Nc3 {[%emt 0:00:02]} d5 {[%emt 0:00:01]} 6. e3 {[%emt 0:00:04]} c5 {[%emt 0:00:02]} 7. dxc5 {[%emt 0:00:15]} Ne4 {[%emt 0:00:02]} 8. Be5 {[%emt 0:00:11]} Bxe5 {[%emt 0:00:05]} 9. Nxe5 {[%emt 0:00:00]} Nxc3 {[%emt 0:00:01]} 10. bxc3 {[%emt 0:00:03]} Qc7 {[%emt 0:00:07]} 11. Nf3 {[%emt 0:00:06]} dxc4 {[%emt 0:00:04]} 12. Qd4 {[%emt 0:00:03]} Nd7 {[%emt 0:00:04]} 13. Bxc4 {[%emt 0:00:03]} Nxc5 {[%emt 0:00:01]} 14. O-O {[%emt 0:00:03]} Rd8 {[%emt 0:00:03]} 15. Qh4 {[%emt 0:00:05] tunaonatnalban08 beraberlik teklif ediyor} h5 {[%emt 0:00:09]} 16. Rad1 {[%emt 0:00:08]} Be6 {[%emt 0:00:04]} 17. Bxe6 {[%emt 0:00:05]} Nxe6 {[%emt 0:00:00]} 18. Nd4 {[%emt 0:00:02]} Ng7 {[%emt 0:00:09]} 19. Rc1 {[%emt 0:00:06]} Rac8 {[%emt 0:00:01]} 20. Qe4 {[%emt 0:00:05]} b6 {[%emt 0:00:08]} 21. Rfd1 {[%emt 0:00:04]} Ne8 {[%emt 0:00:05]} 22. h3 {[%emt 0:00:04]} Nd6 {[%emt 0:00:03]} 23. Qc2 {[%emt 0:00:04]} Nc4 {[%emt 0:00:02]} 24. Qb3 {[%emt 0:00:08]} Kg7 {[%emt 0:00:08]} 25. Nb5 {[%emt 0:00:04]} Rxd1+ {[%emt 0:00:17]} 26. Rxd1 {[%emt 0:00:00]} Qb7 {[%emt 0:00:01]} 27. Na3 {[%emt 0:00:04]} Nxa3 {[%emt 0:00:05]} 28. Qxa3 {[%emt 0:00:00]} Rc4 {[%emt 0:00:09]} 29. Rd4 {[%emt 0:00:04]} Rc5 {[%emt 0:00:01]} 30. Qb2 {[%emt 0:00:03]} Qc7 {[%emt 0:00:02]} 31. Rd1 {[%emt 0:00:04]} Rc4 {[%emt 0:00:06]} 32. Rd4 {[%emt 0:00:04]} Rc5 {[%emt 0:00:05]} 33. Rd1 {[%emt 0:00:01]} f6 {[%emt 0:00:07]} 34. Rd3 {[%emt 0:00:06]} Qc6 {[%emt 0:00:08]} 35. f3 {[%emt 0:00:08]} Qa4 {[%emt 0:00:20]} 36. Qb3 {[%emt 0:00:03]} Qxb3 {[%emt 0:00:09]} 37. axb3 {[%emt 0:00:00]} Ra5 {[%emt 0:00:00]} 38. Rd2 {[%emt 0:00:17]} Ra3 {[%emt 0:00:14]} 39. Rb2 {[%emt 0:00:01]} Kf7 {[%emt 0:00:01]} 40. Kf2 {[%emt 0:00:03]} Ke6 {[%emt 0:00:06]} 41. Ke2 {[%emt 0:00:04]} Kd5 {[%emt 0:00:01]} 42. Kd3 {[%emt 0:00:04]} a5 {[%emt 0:00:07]} 43. g4 {[%emt 0:00:06]} b5 {[%emt 0:00:09]} 44. gxh5 {[%emt 0:00:04]} gxh5 {[%emt 0:00:01]} 45. h4 {[%emt 0:00:04]} e5 {[%emt 0:00:05]} 46. f4 {[%emt 0:00:13]} e4+ {[%emt 0:00:03]} 47. Kc2 {[%emt 0:00:02]} Kc5 {[%emt 0:00:01]} 48. Rb1 {[%emt 0:00:05]} b4 {[%emt 0:00:01]} 49. Kb2 {[%emt 0:00:07]} a4 {[%emt 0:00:17]} 50. bxa4 {[%emt 0:00:04]} Rxc3 {[%emt 0:00:02]} 51. Rg1 {[%emt 0:00:08]} Rxe3 {[%emt 0:00:07]} 52. Rg6 {[%emt 0:00:03]} Kc4 {[%emt 0:00:06]} 53. Rxf6 {[%emt 0:00:03]} Re2+ {[%emt 0:00:02]} 54. Kc1 {[%emt 0:00:01]} e3 {[%emt 0:00:09]} 55. Rc6+ {[%emt 0:00:06]} Kb3 {[%emt 0:00:01]} 56. Kd1 {[%emt 0:00:04]} Rd2+ {[%emt 0:00:01]} 57. Ke1 {[%emt 0:00:03]} Kxa4 {[%emt 0:00:02]} 58. f5 {[%emt 0:00:03]} b3 {[%emt 0:00:08]} 59. f6 {[%emt 0:00:06]} b2 {[%emt 0:00:10]} 60. Rb6 {[%emt 0:00:05]} Ka3 {[%emt 0:00:01]} 61. f7 {[%emt 0:00:03]} Rf2 {[%emt 0:00:01]} 62. Ra6+ {[%emt 0:00:01]} Kb3 {[%emt 0:00:01]} 63. Rb6+ {[%emt 0:00:02]} Kc3 {[%emt 0:00:01]} 64. Rc6+ {[%emt 0:00:04]} Kd3 {[%emt 0:00:01]} 65. Rd6+ {[%emt 0:00:02]} Kc4 {[%emt 0:00:01]} 66. Rb6 {[%emt 0:00:06]} Kc3 {[%emt 0:00:12]} 67. Rc6+ {[%emt 0:00:02]} Kb3 {[%emt 0:00:01]} 68. Rb6+ {[%emt 0:00:01]} Kc2 {[%emt 0:00:00]} 69. Rc6+ {[%emt 0:00:11]} Kb1 {[%emt 0:00:01]} 70. Rc7 {[%emt 0:00:02]} Ka1 {[%emt 0:00:06]} 71. Ra7+ {[%emt 0:00:02]} Kb1 {[%emt 0:00:01]} 72. Rc7 {[%emt 0:00:01]} Ka2 {[%emt 0:00:01]} 73. Ra7+ {[%emt 0:00:02]} Kb3 {[%emt 0:00:01]} 74. Rb7+ {[%emt 0:00:01]} Kc3 {[%emt 0:00:01]} 75. Rc7+ {[%emt 0:00:01]} Kd3 {[%emt 0:00:01]} 76. Rd7+ {[%emt 0:00:03]} Kc2 {[%emt 0:00:04]} 77. Rc7+ {[%emt 0:00:01]} Kb1 {[%emt 0:00:01]} 78. Rb7 {[%emt 0:00:11]} Kc1 {[%emt 0:00:01]} 79. Rc7+ {[%emt 0:00:01]} Rc2 {[%emt 0:00:09]} 80. f8=Q {[%emt 0:00:01]} Rxc7 {[%emt 0:00:06]} 81. Qa3 {[%emt 0:00:01]} Kc2 {[%emt 0:00:02]} 82. Qa4+ {[%emt 0:00:02]} Kc1 {[%emt 0:00:01]} 83. Qa3 {[%emt 0:00:03]} Rc4 {[%emt 0:00:03]} 84. Qxe3+ {[%emt 0:00:02]} Kc2 {[%emt 0:00:00]} 85. Qe2+ {[%emt 0:00:02]} Kb3 {[%emt 0:00:00]} 86. Qd3+ {[%emt 0:00:02]} Rc3 {[%emt 0:00:01]} 87. Qd5+ {[%emt 0:00:02]} Kc2 {[%emt 0:00:01]} 88. Qe4+ {[%emt 0:00:01]} Kb3 {[%emt 0:00:01]} 89. Qd5+ {[%emt 0:00:02]} Ka3 {[%emt 0:00:01]} 90. Qa5+ {[%emt 0:00:01]} Kb3 {[%emt 0:00:01]} 91. Qb5+ {[%emt 0:00:01]} Kc2 {[%emt 0:00:02]} 92. Qe2+ {[%emt 0:00:02]} Kb1 {[%emt 0:00:01]} 93. Qe4+ {[%emt 0:00:01]} Ka2 {[%emt 0:00:07]} 94. Qa4+ {[%emt 0:00:01]} Ra3 {[%emt 0:00:01]} 95. Qc4+ {[%emt 0:00:03]} Ka1 {[%emt 0:00:01]} 96. Qd4 {[%emt 0:00:01]} Ka2 {[%emt 0:00:07]} 97. Qc4+ {[%emt 0:00:03]} Ka1 {[%emt 0:00:01]} 98. Qd4 {[%emt 0:00:01]} Ka2 {[%emt 0:00:03]} 99. Qc4+ {[%emt 0:00:01] (Lag: Av=1.06s, max=2.6s)} 1/2-1/2

[Event "Is Bankasi Online Satranc Turn 17-18 YAS"]
[Site "T#646243Mustafa Kemal"]
[Date "2020.05.22"]
[Round "5"]
[White "Omeramirakdag30"]
[Black "Ahmetemreoztur80"]
[Result "1-0"]
[WhiteElo "1839"]
[BlackElo "1750"]
[Annotator "NA RC"]
[PlyCount "61"]
[EventDate "2020.05.22"]
[EventType "swiss (blitz)"]
[TimeControl "180+2"]

1. d4 {[%emt 0:00:04]} d5 {[%emt 0:00:02]} 2. c4 {[%emt 0:00:04]} e6 {[%emt 0:00:03]} 3. Nc3 {[%emt 0:00:02]} Nf6 {[%emt 0:00:02]} 4. Bg5 {[%emt 0:00:01]} Be7 {[%emt 0:00:01]} 5. Nf3 {[%emt 0:00:04]} O-O {[%emt 0:00:10]} 6. cxd5 {[%emt 0:00:02]} exd5 {[%emt 0:00:02]} 7. e3 {[%emt 0:00:01]} Nbd7 {[%emt 0:00:02]} 8. Bd3 {[%emt 0:00:03]} b6 {[%emt 0:00:02]} 9. O-O {[%emt 0:00:02]} Bb7 {[%emt 0:00:01]} 10. Qc2 {[%emt 0:00:02]} h6 {[%emt 0:00:05]} 11. Bh4 {[%emt 0:00:12]} c5 {[%emt 0:00:10]} 12. dxc5 {[%emt 0:00:17]} bxc5 {[%emt 0:00:12]} 13. Rfd1 {[%emt 0:00:03]} c4 {[%emt 0:00:03]} 14. Be2 {[%emt 0:00:02]} Ne4 {[%emt 0:00:12]} 15. Bxe7 {[%emt 0:00:04]} Qxe7 {[%emt 0:00:00]} 16. Nxd5 {[%emt 0:00:02]} Bxd5 {[%emt 0:00:08]} 17. Rxd5 {[%emt 0:00:00]} Ndf6 {[%emt 0:00:06]} 18. Rd4 {[%emt 0:00:08]} Rae8 {[%emt 0:00:31]} 19. Bxc4 {[%emt 0:00:13]} Rc8 {[%emt 0:00:02]} 20. Qe2 {[%emt 0:00:07]} Qb7 {[%emt 0:00:16]} 21. h3 {[%emt 0:00:07]} Rb8 {[%emt 0:00:26]} 22. b3 {[%emt 0:00:20]} Nc3 {[%emt 0:00:02]} 23. Qd3 {[%emt 0:00:15]} Nfe4 {[%emt 0:00:03]} 24. a4 {[%emt 0:00:20]} Kh8 {[%emt 0:00:17]} 25. Rc1 {[%emt 0:00:07]} Qb4 {[%emt 0:00:37]} 26. Rxe4 {[%emt 0:00:06]} Nxe4 {[%emt 0:00:15]} 27. Qxe4 {[%emt 0:00:00]} Qa3 {[%emt 0:00:01]} 28. Rd1 {[%emt 0:00:04]} Rbe8 {[%emt 0:00:04]} 29. Qb7 {[%emt 0:00:15]} Qb2 {[%emt 0:00:02]} 30. Rd7 {[%emt 0:00:05]} Qa1+ {[%emt 0:00:04] '} 31. Kh2 {[%emt 0:00:01] Zaman (Lag: Av=0.39s, max=0.6s)} 1-0

[Event "Is Bankasi Online Satranc Turn 17-18 YAS"]
[Site "T#646243Mustafa Kemal"]
[Date "2020.05.22"]
[Round "5"]
[White "Dogukangureke78"]
[Black "Hakansimsek70"]
[Result "1/2-1/2"]
[WhiteElo "1769"]
[BlackElo "1717"]
[Annotator "NA RC"]
[PlyCount "125"]
[EventDate "2020.05.22"]
[EventType "swiss (blitz)"]
[TimeControl "180+2"]

1. d4 {[%emt 0:00:12]} Nf6 {[%emt 0:00:02]} 2. c4 {[%emt 0:00:03]} e6 {[%emt 0:00:01]} 3. g3 {[%emt 0:00:02]} d5 {[%emt 0:00:05]} 4. Nf3 {[%emt 0:00:01]} dxc4 {[%emt 0:00:07]} 5. Bg2 {[%emt 0:00:02]} c5 {[%emt 0:00:05]} 6. O-O {[%emt 0:00:02]} cxd4 {[%emt 0:00:13]} 7. Nxd4 {[%emt 0:00:04]} Be7 {[%emt 0:00:07]} 8. Nc3 {[%emt 0:00:15]} O-O {[%emt 0:00:07]} 9. e4 {[%emt 0:00:10]} e5 {[%emt 0:00:23]} 10. Nf3 {[%emt 0:00:08]} Nc6 {[%emt 0:00:06]} 11. Qe2 {[%emt 0:00:06]} Qc7 {[%emt 0:00:07]} 12. Qxc4 {[%emt 0:00:04]} Be6 {[%emt 0:00:07]} 13. Nd5 {[%emt 0:00:14]} Qa5 {[%emt 0:00:59]} 14. Nxe7+ {[%emt 0:00:05]} Nxe7 {[%emt 0:00:03]} 15. Qe2 {[%emt 0:00:07]} Rfd8 {[%emt 0:00:05]} 16. Bd2 {[%emt 0:00:05]} Qb6 {[%emt 0:00:01]} 17. Bc3 {[%emt 0:00:03]} Nc6 {[%emt 0:00:02]} 18. Nxe5 {[%emt 0:00:06]} Nd4 {[%emt 0:00:11]} 19. Bxd4 {[%emt 0:00:58]} Qxd4 {[%emt 0:00:02]} 20. Nf3 {[%emt 0:00:02]} Qxe4 {[%emt 0:00:05]} 21. Rfe1 {[%emt 0:00:03]} Qxe2 {[%emt 0:00:04]} 22. Rxe2 {[%emt 0:00:00]} Bg4 {[%emt 0:00:11]} 23. h3 {[%emt 0:00:05]} Bd7 {[%emt 0:00:07]} 24. Rae1 {[%emt 0:00:09]} Kf8 {[%emt 0:00:04]} 25. Ne5 {[%emt 0:00:05]} Rab8 {[%emt 0:00:05]} 26. Nxd7+ {[%emt 0:00:03]} Rxd7 {[%emt 0:00:00]} 27. b4 {[%emt 0:00:12]} b6 {[%emt 0:00:02]} 28. a4 {[%emt 0:00:02]} Re8 {[%emt 0:00:12]} 29. Rxe8+ {[%emt 0:00:05]} Nxe8 {[%emt 0:00:00]} 30. Bc6 {[%emt 0:00:03]} Re7 {[%emt 0:00:06]} 31. Rxe7 {[%emt 0:00:08]} Kxe7 {[%emt 0:00:01]} 32. Kg2 {[%emt 0:00:02]} Nd6 {[%emt 0:00:03]} 33. Kf3 {[%emt 0:00:02]} Ke6 {[%emt 0:00:05]} 34. Ke3 {[%emt 0:00:06]} Nf5+ {[%emt 0:00:03]} 35. Ke4 {[%emt 0:00:03]} Nd6+ {[%emt 0:00:01]} 36. Kd3 {[%emt 0:00:02]} f6 {[%emt 0:00:03]} 37. Kd4 {[%emt 0:00:05]} Nf5+ {[%emt 0:00:02]} 38. Kc4 {[%emt 0:00:02]} Nd6+ {[%emt 0:00:03]} 39. Kc3 {[%emt 0:00:05]} Ke5 {[%emt 0:00:02]} 40. f4+ {[%emt 0:00:02]} Kf5 {[%emt 0:00:02]} 41. a5 {[%emt 0:00:01]} bxa5 {[%emt 0:00:01]} 42. bxa5 {[%emt 0:00:00]} Ne4+ {[%emt 0:00:01]} 43. Bxe4+ {[%emt 0:00:09]} Kxe4 {[%emt 0:00:00]} 44. Kc4 {[%emt 0:00:00]} Kf3 {[%emt 0:00:02]} 45. Kc5 {[%emt 0:00:01]} Kxg3 {[%emt 0:00:01]} 46. a6 {[%emt 0:00:01]} Kxf4 {[%emt 0:00:03]} 47. Kc6 {[%emt 0:00:00]} Kg3 {[%emt 0:00:04]} 48. Kb7 {[%emt 0:00:00]} f5 {[%emt 0:00:00]} 49. Kxa7 {[%emt 0:00:00]} f4 {[%emt 0:00:00]} 50. Kb7 {[%emt 0:00:01]} f3 {[%emt 0:00:00]} 51. a7 {[%emt 0:00:00]} f2 {[%emt 0:00:05]} 52. a8=Q {[%emt 0:00:00]} f1=Q {[%emt 0:00:02]} 53. Qb8+ {[%emt 0:00:04]} Kxh3 {[%emt 0:00:04]} 54. Qc8+ {[%emt 0:00:02]} Kg2 {[%emt 0:00:07]} 55. Qc2+ {[%emt 0:00:03]} Qf2 {[%emt 0:00:02]} 56. Qxh7 {[%emt 0:00:02]} Qf3+ {[%emt 0:00:02]} 57. Kb6 {[%emt 0:00:02]} Qf6+ {[%emt 0:00:02]} 58. Kc5 {[%emt 0:00:06]} g5 {[%emt 0:00:04]} 59. Qe4+ {[%emt 0:00:03]} Kg3 {[%emt 0:00:04]} 60. Qe3+ {[%emt 0:00:03]} Qf3 {[%emt 0:00:01]} 61. Qxg5+ {[%emt 0:00:01]} Kf2 {[%emt 0:00:00]} 62. Qd5 {[%emt 0:00:03]} Qxd5+ {[%emt 0:00:02]} 63. Kxd5 {[%emt 0:00:00] (Lag: Av=0.49s, max=0.7s)} 1/2-1/2

[Event "Is Bankasi Online Satranc Turn 17-18 YAS"]
[Site "T#646243Mustafa Kemal"]
[Date "2020.05.22"]
[Round "5"]
[White "Ataberkturkmen48"]
[Black "Canberkgiray40"]
[Result "1-0"]
[WhiteElo "1739"]
[BlackElo "1793"]
[Annotator "NA RC"]
[PlyCount "93"]
[EventDate "2020.05.22"]
[EventType "swiss (blitz)"]
[TimeControl "180+2"]

1. e4 {[%emt 0:00:04]} e6 {[%emt 0:00:04]} 2. d4 {[%emt 0:00:07]} d5 {[%emt 0:00:01]} 3. exd5 {[%emt 0:00:22]} exd5 {[%emt 0:00:03]} 4. Bd3 {[%emt 0:00:01]} Nf6 {[%emt 0:00:01]} 5. Ne2 {[%emt 0:00:02]} Bd6 {[%emt 0:00:02]} 6. Nbc3 {[%emt 0:00:03]} c6 {[%emt 0:00:02]} 7. Bg5 {[%emt 0:00:02]} O-O {[%emt 0:00:01]} 8. Qd2 {[%emt 0:00:02]} Bg4 {[%emt 0:00:04]} 9. f3 {[%emt 0:00:01]} Bh5 {[%emt 0:00:01]} 10. g4 {[%emt 0:00:01]} Bg6 {[%emt 0:00:01]} 11. Bxg6 {[%emt 0:00:03]} fxg6 {[%emt 0:00:15]} 12. O-O-O {[%emt 0:00:05]} Nbd7 {[%emt 0:00:07]} 13. h4 {[%emt 0:00:01]} h6 {[%emt 0:00:04]} 14. Bf4 {[%emt 0:00:07]} Qc7 {[%emt 0:00:09]} 15. g5 {[%emt 0:00:34]} Bxf4 {[%emt 0:00:05]} 16. Nxf4 {[%emt 0:00:31]} Ne4 {[%emt 0:00:36]} 17. fxe4 {[%emt 0:00:06]} Qxf4 {[%emt 0:00:03]} 18. exd5 {[%emt 0:00:08]} cxd5 {[%emt 0:00:12]} 19. Qxf4 {[%emt 0:00:07]} Rxf4 {[%emt 0:00:02]} 20. Nxd5 {[%emt 0:00:00]} Rf2 {[%emt 0:00:04]} 21. h5 {[%emt 0:00:37]} Re8 {[%emt 0:00:25]} 22. Rd2 {[%emt 0:00:13]} Rxd2 {[%emt 0:00:09]} 23. Kxd2 {[%emt 0:00:00]} hxg5 {[%emt 0:00:14]} 24. hxg6 {[%emt 0:00:03]} Nf6 {[%emt 0:00:04]} 25. Nxf6+ {[%emt 0:00:16]} gxf6 {[%emt 0:00:02]} 26. Rh7 {[%emt 0:00:06]} g4 {[%emt 0:00:14]} 27. Rxb7 {[%emt 0:00:05]} g3 {[%emt 0:00:02]} 28. Rb3 {[%emt 0:00:01]} Re4 {[%emt 0:00:11]} 29. Rxg3 {[%emt 0:00:02]} Rxd4+ {[%emt 0:00:02]} 30. Kc3 {[%emt 0:00:01]} Rd6 {[%emt 0:00:02]} 31. b4 {[%emt 0:00:01]} Kg7 {[%emt 0:00:01]} 32. a4 {[%emt 0:00:02]} Ra6 {[%emt 0:00:04]} 33. Kb3 {[%emt 0:00:01]} f5 {[%emt 0:00:04]} 34. b5 {[%emt 0:00:01]} Rf6 {[%emt 0:00:02]} 35. a5 {[%emt 0:00:04]} f4 {[%emt 0:00:01]} 36. Rf3 {[%emt 0:00:01]} Kxg6 {[%emt 0:00:02]} 37. c4 {[%emt 0:00:01]} Kg5 {[%emt 0:00:01]} 38. Kb4 {[%emt 0:00:01]} Kg4 {[%emt 0:00:01]} 39. Rf1 {[%emt 0:00:01]} Kg3 {[%emt 0:00:03]} 40. c5 {[%emt 0:00:01]} Kg2 {[%emt 0:00:01]} 41. Ra1 {[%emt 0:00:02]} f3 {[%emt 0:00:07]} 42. c6 {[%emt 0:00:03]} f2 {[%emt 0:00:05]} 43. c7 {[%emt 0:00:03]} Rf8 {[%emt 0:00:02]} 44. b6 {[%emt 0:00:04]} axb6 {[%emt 0:00:01]} 45. axb6 {[%emt 0:00:00]} f1=Q {[%emt 0:00:03]} 46. Rxf1 {[%emt 0:00:02]} Kxf1 {[%emt 0:00:02]} 47. b7 {[%emt 0:00:01] Canberkgiray40 terk eder (Lag: Av=0.69s, max=1.3s)} 1-0

[Event "Is Bankasi Online Satranc Turn 17-18 YAS"]
[Site "T#646243Mustafa Kemal"]
[Date "2020.05.22"]
[Round "5"]
[White "Emrekocakaplan04"]
[Black "Furkancan12"]
[Result "1/2-1/2"]
[WhiteElo "1728"]
[BlackElo "1645"]
[Annotator "NA RC"]
[PlyCount "105"]
[EventDate "2020.05.22"]
[EventType "swiss (blitz)"]
[TimeControl "180+2"]

1. d4 {[%emt 0:00:04]} d5 {[%emt 0:00:06]} 2. Nf3 {[%emt 0:00:01]} Nf6 {[%emt 0:00:01]} 3. c4 {[%emt 0:00:02]} c6 {[%emt 0:00:01]} 4. g3 {[%emt 0:00:02]} g6 {[%emt 0:00:01]} 5. Bg2 {[%emt 0:00:01]} Bg7 {[%emt 0:00:00]} 6. O-O {[%emt 0:00:01]} O-O {[%emt 0:00:00]} 7. b3 {[%emt 0:00:13]} Ne4 {[%emt 0:00:05]} 8. Bb2 {[%emt 0:00:05]} Be6 {[%emt 0:00:10]} 9. Nbd2 {[%emt 0:00:16]} Nxd2 {[%emt 0:00:03]} 10. Qxd2 {[%emt 0:00:03]} dxc4 {[%emt 0:00:09]} 11. Ng5 {[%emt 0:00:36]} Qd7 {[%emt 0:00:43]} 12. Nxe6 {[%emt 0:00:32]} Qxe6 {[%emt 0:00:04]} 13. Qb4 {[%emt 0:00:01]} b5 {[%emt 0:00:14]} 14. bxc4 {[%emt 0:00:07]} a5 {[%emt 0:00:02]} 15. Qc5 {[%emt 0:00:08]} Qxc4 {[%emt 0:00:01]} 16. Qxc4 {[%emt 0:00:03]} bxc4 {[%emt 0:00:00]} 17. Rac1 {[%emt 0:00:09]} Ra6 {[%emt 0:00:02]} 18. Rxc4 {[%emt 0:00:03]} Rc8 {[%emt 0:00:01]} 19. Rfc1 {[%emt 0:00:12]} h5 {[%emt 0:00:13]} 20. h4 {[%emt 0:00:03]} Bf6 {[%emt 0:00:03]} 21. Ba3 {[%emt 0:00:05]} Rd8 {[%emt 0:00:19]} 22. e3 {[%emt 0:00:07]} e5 {[%emt 0:00:36]} 23. dxe5 {[%emt 0:00:26]} Bxe5 {[%emt 0:00:00]} 24. R1c2 {[%emt 0:00:13]} Rd1+ {[%emt 0:00:26]} 25. Kh2 {[%emt 0:00:01]} Kh7 {[%emt 0:00:12]} 26. Bf3 {[%emt 0:00:05]} Ra1 {[%emt 0:00:02]} 27. Bb2 {[%emt 0:00:08]} Bxb2 {[%emt 0:00:02]} 28. Rxb2 {[%emt 0:00:01]} Nd7 {[%emt 0:00:01]} 29. Rxc6 {[%emt 0:00:05]} Rxc6 {[%emt 0:00:01]} 30. Bxc6 {[%emt 0:00:00]} Ne5 {[%emt 0:00:00]} 31. Bg2 {[%emt 0:00:02]} Nd3 {[%emt 0:00:01]} 32. Rd2 {[%emt 0:00:01]} Nb4 {[%emt 0:00:02]} 33. Rd7 {[%emt 0:00:05]} Kg7 {[%emt 0:00:01]} 34. Rd2 {[%emt 0:00:06]} Nxa2 {[%emt 0:00:03]} 35. Bd5 {[%emt 0:00:02]} Nb4 {[%emt 0:00:01]} 36. Bc4 {[%emt 0:00:02]} Rc1 {[%emt 0:00:02]} 37. Bb3 {[%emt 0:00:02]} Rc3 {[%emt 0:00:01]} 38. Ba4 {[%emt 0:00:01]} Rc7 {[%emt 0:00:05]} 39. Kg2 {[%emt 0:00:01]} Rc3 {[%emt 0:00:02]} 40. e4 {[%emt 0:00:05]} Ra3 {[%emt 0:00:00]} 41. Bb5 {[%emt 0:00:02]} Rb3 {[%emt 0:00:02]} 42. Bc4 {[%emt 0:00:01]} Rc3 {[%emt 0:00:01]} 43. Bb5 {[%emt 0:00:01]} Rc5 {[%emt 0:00:02]} 44. Ba4 {[%emt 0:00:01]} Rc3 {[%emt 0:00:01]} 45. Bb5 {[%emt 0:00:01]} Ra3 {[%emt 0:00:01]} 46. e5 {[%emt 0:00:02]} Kf8 {[%emt 0:00:05]} 47. Rd8+ {[%emt 0:00:02]} Kg7 {[%emt 0:00:02]} 48. Rd2 {[%emt 0:00:01]} Rc3 {[%emt 0:00:11]} 49. Rd7 {[%emt 0:00:03]} Kf8 {[%emt 0:00:01]} 50. Rd8+ {[%emt 0:00:01]} Kg7 {[%emt 0:00:01]} 51. Rd7 {[%emt 0:00:01]} Kg8 {[%emt 0:00:01]} 52. Rd8+ {[%emt 0:00:01]} Kg7 {[%emt 0:00:03]} 53. Rd7 {[%emt 0:00:01] (Lag: Av=0.43s, max=0.8s)} 1/2-1/2

[Event "Is Bankasi Online Satranc Turn 17-18 YAS"]
[Site "T#646243Mustafa Kemal"]
[Date "2020.05.22"]
[Round "5"]
[White "keremerdal34"]
[Black "ahmetburakgurs66"]
[Result "0-1"]
[WhiteElo "1727"]
[BlackElo "1655"]
[Annotator "NA RC"]
[PlyCount "56"]
[EventDate "2020.05.22"]
[EventType "swiss (blitz)"]
[TimeControl "180+2"]

1. e4 {[%emt 0:00:05]} e5 {[%emt 0:00:02]} 2. Nf3 {[%emt 0:00:02]} Nf6 {[%emt 0:00:01]} 3. Nc3 {[%emt 0:00:01]} Nc6 {[%emt 0:00:02]} 4. Bb5 {[%emt 0:00:01]} Nd4 {[%emt 0:00:07]} 5. Nxd4 {[%emt 0:00:02]} exd4 {[%emt 0:00:01]} 6. e5 {[%emt 0:00:01]} dxc3 {[%emt 0:00:02]} 7. exf6 {[%emt 0:00:01]} cxd2+ {[%emt 0:00:02]} 8. Bxd2 {[%emt 0:00:06]} Qxf6 {[%emt 0:00:01]} 9. O-O {[%emt 0:00:05]} Be7 {[%emt 0:00:01]} 10. Bc3 {[%emt 0:00:03]} Qg5 {[%emt 0:00:16]} 11. Bd3 {[%emt 0:00:41]} O-O {[%emt 0:00:05]} 12. f4 {[%emt 0:00:10]} Qc5+ {[%emt 0:00:22]} 13. Kh1 {[%emt 0:00:02]} g6 {[%emt 0:00:03]} 14. f5 {[%emt 0:00:06]} d5 {[%emt 0:00:06]} 15. f6 {[%emt 0:00:07]} Bd6 {[%emt 0:00:20]} 16. Qd2 {[%emt 0:00:09]} Re8 {[%emt 0:00:01]} 17. b4 {[%emt 0:00:38]} Qb6 {[%emt 0:00:06]} 18. a4 {[%emt 0:00:40]} c6 {[%emt 0:00:04]} 19. Qh6 {[%emt 0:00:07]} Bf8 {[%emt 0:00:02]} 20. Qh4 {[%emt 0:00:01]} Bd7 {[%emt 0:00:18]} 21. Bd2 {[%emt 0:00:02]} h5 {[%emt 0:00:02]} 22. Bxg6 {[%emt 0:00:02]} fxg6 {[%emt 0:00:05]} 23. f7+ {[%emt 0:00:01]} Kh7 {[%emt 0:00:03]} 24. fxe8=Q {[%emt 0:00:03]} Rxe8 {[%emt 0:00:01]} 25. Qg5 {[%emt 0:00:06]} Bg7 {[%emt 0:00:04]} 26. Rf7 {[%emt 0:00:04]} Qd4 {[%emt 0:00:07]} 27. Qh6+ {[%emt 0:00:03]} Kg8 {[%emt 0:00:02]} 28. Qxg6 {[%emt 0:00:12]} Qxa1+ {[%emt 0:00:02] keremerdal34 resigns (Lag: Av=0.49s, max=1.0s)} 0-1

[Event "Is Bankasi Online Satranc Turn 17-18 YAS"]
[Site "T#646243Mustafa Kemal"]
[Date "2020.05.22"]
[Round "5"]
[White "Burakcanaksoz58"]
[Black "Kemalalpcakir74"]
[Result "1-0"]
[WhiteElo "1648"]
[BlackElo "1660"]
[Annotator "NA RC"]
[PlyCount "101"]
[EventDate "2020.05.22"]
[EventType "swiss (blitz)"]
[TimeControl "180+2"]

1. d4 {[%emt 0:00:03]} g6 {[%emt 0:00:15]} 2. c4 {[%emt 0:00:01]} Bg7 {[%emt 0:00:01]} 3. Nc3 {[%emt 0:00:01]} d6 {[%emt 0:00:01]} 4. e4 {[%emt 0:00:01]} Nf6 {[%emt 0:00:01]} 5. f3 {[%emt 0:00:01]} O-O {[%emt 0:00:01]} 6. Be3 {[%emt 0:00:01]} Nbd7 {[%emt 0:00:06]} 7. Qd2 {[%emt 0:00:02]} c5 {[%emt 0:00:17]} 8. Nge2 {[%emt 0:00:02]} b6 {[%emt 0:00:08]} 9. O-O-O {[%emt 0:00:29]} Ba6 {[%emt 0:00:05]} 10. Ng3 {[%emt 0:00:11]} Rb8 {[%emt 0:00:08]} 11. h4 {[%emt 0:00:07]} h5 {[%emt 0:00:12]} 12. Be2 {[%emt 0:00:25]} Nh7 {[%emt 0:00:16]} 13. Bh6 {[%emt 0:00:28]} Qc7 {[%emt 0:00:58]} 14. Bxg7 {[%emt 0:00:17]} Kxg7 {[%emt 0:00:00]} 15. Nf1 {[%emt 0:00:01]} Nhf6 {[%emt 0:00:09]} 16. g4 {[%emt 0:00:04]} cxd4 {[%emt 0:00:41]} 17. Qxd4 {[%emt 0:00:04]} Qc5 {[%emt 0:00:02]} 18. Qxc5 {[%emt 0:00:10]} Nxc5 {[%emt 0:00:03]} 19. Ng3 {[%emt 0:00:03]} hxg4 {[%emt 0:00:09]} 20. fxg4 {[%emt 0:00:02]} Rh8 {[%emt 0:00:01]} 21. h5 {[%emt 0:00:07]} Bb7 {[%emt 0:00:04]} 22. Bf3 {[%emt 0:00:07]} gxh5 {[%emt 0:00:02]} 23. gxh5 {[%emt 0:00:04]} Kg8 {[%emt 0:00:05]} 24. Rdg1 {[%emt 0:00:04]} Kf8 {[%emt 0:00:01]} 25. Rh4 {[%emt 0:00:11]} Nd3+ {[%emt 0:00:01]} 26. Kc2 {[%emt 0:00:06]} Ne5 {[%emt 0:00:01]} 27. Bh1 {[%emt 0:00:06]} Rg8 {[%emt 0:00:01]} 28. h6 {[%emt 0:00:02]} Rh8 {[%emt 0:00:01]} 29. Nf5 {[%emt 0:00:02]} Ke8 {[%emt 0:00:03]} 30. Bg2 {[%emt 0:00:12]} Kd7 {[%emt 0:00:01]} 31. Bh3 {[%emt 0:00:01]} Kc7 {[%emt 0:00:02]} 32. Rg7 {[%emt 0:00:03]} Rbf8 {[%emt 0:00:02]} 33. Nxe7 {[%emt 0:00:02]} Kd8 {[%emt 0:00:03]} 34. Ned5 {[%emt 0:00:02]} Nxd5 {[%emt 0:00:02]} 35. exd5 {[%emt 0:00:02]} Bc8 {[%emt 0:00:02]} 36. Ne4 {[%emt 0:00:06]} Bxh3 {[%emt 0:00:02]} 37. Rxh3 {[%emt 0:00:00]} Ke7 {[%emt 0:00:01]} 38. h7 {[%emt 0:00:02]} Ke8 {[%emt 0:00:05]} 39. Nxd6+ {[%emt 0:00:01]} Ke7 {[%emt 0:00:01]} 40. Nf5+ {[%emt 0:00:02]} Ke8 {[%emt 0:00:02]} 41. Nd6+ {[%emt 0:00:06]} Ke7 {[%emt 0:00:01]} 42. Nf5+ {[%emt 0:00:01]} Ke8 {[%emt 0:00:01]} 43. Re3 {[%emt 0:00:01]} f6 {[%emt 0:00:02]} 44. Re7+ {[%emt 0:00:02]} Kd8 {[%emt 0:00:01]} 45. Rg3 {[%emt 0:00:03]} a5 {[%emt 0:00:06]} 46. Reg7 {[%emt 0:00:04]} Ke8 {[%emt 0:00:02]} 47. Nd6+ {[%emt 0:00:02]} Kd8 {[%emt 0:00:02]} 48. Rg8 {[%emt 0:00:03]} Kd7 {[%emt 0:00:03]} 49. Nf5 {[%emt 0:00:08]} a4 {[%emt 0:00:02]} 50. Rxf8 {[%emt 0:00:01]} Rxf8 {[%emt 0:00:01]} 51. Rg8 {[%emt 0:00:00] Zaman (Lag: Av=0.87s, max=2.0s)} 1-0